bitfinex-derivatives/quotes_SOLF0:USTF0_20241218
["timestamp","ask_amount","ask_price","bid_price","bid_amount"]
[1734535128362,3.0058,217.73,217.64,28.9951942]
[1734535129462,3.0058,217.73,217.64,31.2930942]
[1734535130156,3.08,217.78,217.68,28.9951942]
[1734535130859,2.2969,217.74,217.64,28.9951942]
[1734535131463,32.0751942,217.78,217.6,32.0751942]
[1734535131658,32.0751942,217.78,217.6,28.9951942]
[1734535132159,2.2971,217.72,217.62,2.2981]
[1734535132553,3.08,217.74,217.6,34.53060736]
[1734535132854,2.2968,217.75,217.64,31.2930942]
[1734535133059,3.08,217.77,217.64,28.9951942]
[1734535133361,3.08,217.78,217.64,28.9951942]
[1734535133561,2.2966,217.77,217.64,28.9951942]
[1734535133764,3.08,217.78,217.64,28.9951942]
[1734535133961,4.524,217.79,217.65,3.08]
[1734535134663,2.2966,217.77,217.68,2.2974]
[1734535135357,5.3764,217.79,217.7,2.2972]
[1734535135562,2.2964,217.79,217.7,2.2972]
[1734535136261,2.2961,217.81,217.72,2.297]
[1734535137058,3.829,217.83,217.72,28.9951942]
[1734535137255,1.533,217.83,217.72,28.9951942]
[1734535138665,1.533,217.83,217.75,2.2967]
[1734535138666,3.8289,217.83,217.75,2.2967]
[1734535139961,2.296,217.82,217.74,2.2968]
[1734535141467,1.533,217.83,217.72,34.55856443]
[1734535141669,1.533,217.83,217.72,5.56337023]
[1734535142568,2.2964,217.79,217.72,7.86037023]
[1734535143165,1.533,217.83,217.72,5.56337023]
[1734535143365,1.533,217.83,217.68,28.9951942]
[1734535143568,1.533,217.83,217.58,28.9951942]
[1734535143569,2.2969,217.74,217.64,32.0751942]
[1734535143765,2.2969,217.74,217.67,2.2976]
[1734535144263,3.08,217.77,217.68,2.2975]
[1734535144564,3.08,217.81,217.68,28.9951942]
[1734535144760,3.08,217.81,217.75,2.2967]
[1734535144965,3.08,217.81,217.72,28.9951942]
[1734535145166,5.3762,217.81,217.72,28.9951942]
[1734535145360,5.3762,217.81,217.74,2.2968]
[1734535145564,2.296,217.82,217.72,28.9951942]
[1734535146465,4.613,217.83,217.7,5.61922282]
[1734535146665,33.6081942,217.83,217.7,5.61922282]
[1734535147070,4.613,217.83,217.7,5.61922282]
[1734535147463,4.613,217.83,217.7,8.69922282]
[1734535147662,2.2961,217.81,217.7,8.69922282]
[1734535147862,4.613,217.83,217.7,8.69922282]
[1734535148765,2.2962,217.8,217.74,2.2968]
[1734535148970,4.613,217.83,217.7,5.61922282]
[1734535149176,22.44162724,217.83,217.7,5.61922282]
[1734535149375,2.2969,217.74,217.7,5.61922282]
[1734535149571,3.08,217.77,217.7,5.61922282]
[1734535150076,3.08,217.77,217.7,7.91652282]
[1734535150276,3.08,217.77,217.7,5.61922282]
[1734535150872,5.3766,217.77,217.7,7.91642282]
[1734535151080,3.08,217.77,217.7,7.91642282]
[1734535151281,3.08,217.77,217.7,5.61922282]
[1734535153379,3.08,217.77,217.65,17.82862724]
[1734535153581,2.297,217.73,217.68,2.2975]
[1734535153883,3.08,217.77,217.66,5.55552644]
[1734535154189,2.9645,217.76,217.61,17.82862724]
[1734535154585,2.9645,217.76,217.63,5.4920883]
[1734535155181,2.2971,217.72,217.66,2.2976]
[1734535155586,2.2971,217.72,217.63,5.4920883]
[1734535155789,2.2971,217.72,217.66,2.2976]
[1734535156187,2.9645,217.76,217.66,2.2976]
[1734535156486,2.9645,217.76,217.67,2.2975]
[1734535156791,2.2972,217.72,217.67,2.2975]
[1734535156987,2.9645,217.76,217.63,5.4920883]
[1734535158091,2.96,217.75,217.65,17.82862724]
[1734535158592,2.2968,217.75,217.7,2.2972]
[1734535159594,2.2968,217.75,217.71,2.2971]
[1734535159795,3.7377,217.76,217.71,2.2971]
[1734535160689,2.2975,217.69,217.67,152.06091791]
[1734535160888,2.96,217.7,217.67,152.06091791]
[1734535161392,2.96,217.7,217.63,2.2979]
[1734535162291,2.96,217.7,217.61,279.37019741]
[1734535162490,3.1022,217.69,217.61,279.37019741]
[1734535162691,2.2979,217.64,217.61,279.37019741]
[1734535162893,2.96,217.64,217.61,279.37019741]
[1734535163190,2.96,217.64,217.59,2.2983]
[1734535163392,2.96,217.64,217.58,25.22511673]
[1734535163897,2.96,217.68,217.6,17.82862724]
[1734535165192,2.96,217.68,217.67,2.2976]
[1734535165695,2.96,217.68,217.63,25.22511673]
[1734535165997,2.96,217.68,217.56,17.82862724]
[1734535166296,2.96,217.68,217.62,2.298]
[1734535166297,2.2976,217.67,217.62,2.298]
[1734535166495,2.2976,217.67,217.56,20.78862724]
[1734535166795,2.96,217.68,217.56,20.78862724]
[1734535167392,2.96,217.68,217.66,2.2977]
[1734535167599,2.2973,217.7,217.66,2.2977]
[1734535170397,2.96,217.71,217.63,2.298]
[1734535170595,2.96,217.71,217.56,20.78862724]
[1734535170798,2.96,217.71,217.56,17.82862724]
[1734535171697,17.82862724,217.7,217.52,20.78862724]
[1734535171893,2.2979,217.64,217.6,2.2983]
[1734535172100,5.2579,217.64,217.6,2.2983]
[1734535172295,2.96,217.64,217.52,20.78862724]
[1734535172601,2.96,217.68,217.56,17.82862724]
[1734535172899,1.521,217.75,217.6,17.82862724]
[1734535173099,2.2971,217.72,217.68,2.2974]
[1734535173398,2.96,217.73,217.6,17.82862724]
[1734535173801,5.257,217.73,217.69,2.2973]
[1734535174703,5.257,217.73,217.7,2.2973]
[1734535175100,3.8177,217.75,217.64,17.82862724]
[1734535175295,6.7777,217.75,217.67,2.2975]
[1734535175602,6.7777,217.75,217.64,17.82862724]
[1734535175799,3.8177,217.75,217.64,17.82862724]
[1734535176400,2.2969,217.74,217.7,2.2972]
[1734535176600,1.521,217.75,217.64,17.82862724]
[1734535177101,2.2967,217.75,217.64,17.82862724]
[1734535177302,4.4011,217.76,217.64,17.82862724]
[1734535177498,1.4411,217.76,217.64,17.82862724]
[1734535177802,4.4011,217.76,217.64,17.82862724]
[1734535177999,2.96,217.76,217.64,17.82862724]
[1734535178200,3.0741,217.81,217.64,17.82862724]
[1734535178504,2.96,217.81,217.68,17.82862724]
[1734535178701,5.2559,217.84,217.72,17.82862724]
[1734535179005,2.96,217.84,217.72,17.82862724]
[1734535180297,2.2961,217.82,217.77,2.2964]
[1734535180702,2.296,217.82,217.77,2.2964]
[1734535181004,2.96,217.84,217.77,2.2964]
[1734535181303,2.2962,217.81,217.77,2.2965]
[1734535181696,6.72916587,217.87,217.75,5.50050106]
[1734535181896,2.2959,217.83,217.75,5.50050106]
[1734535182501,2.2958,217.84,217.75,5.50050106]
[1734535182703,5.2558,217.84,217.75,5.50050106]
[1734535183203,5.2558,217.84,217.79,2.2963]
[1734535183403,5.2558,217.84,217.75,5.50050106]
[1734535183807,2.2953,217.89,217.85,2.2957]
[1734535184702,2.9808,217.9,217.85,2.2957]
[1734535184911,2.9808,217.9,217.77,2.96]
[1734535185306,2.2955,217.87,217.77,2.96]
[1734535185802,2.2954,217.89,217.77,2.96]
[1734535186600,2.9808,217.9,217.77,2.96]
[1734535186804,1.508,217.94,217.8,17.82862724]
[1734535186805,2.84,217.93,217.8,17.82862724]
[1734535187000,1.508,217.94,217.89,2.2952]
[1734535187399,2.84,217.96,217.8,17.82862724]
[1734535187400,2.84,217.96,217.86,2.2955]
[1734535187605,17.82862724,217.99,217.83,2.84]
[1734535187801,1.4553,218.04,217.84,17.82862724]
[1734535188006,24.69585619,218.04,217.94,2.2947]
[1734535188210,2.84,218.03,217.94,2.2947]
[1734535188409,2.84,218.03,217.89,2.84]
[1734535189111,2.2942,217.99,217.94,2.2947]
[1734535190808,2.2942,217.99,217.92,2.2949]
[1734535191009,2.2942,217.99,217.86,5.62100449]
[1734535191010,17.82862724,218.0,217.86,5.62100449]
[1734535191211,17.82862724,217.96,217.81,2.84]
[1734535191411,5.7609,217.95,217.86,2.2956]
[1734535192013,5.7609,217.95,217.8,20.66862724]
[1734535192310,5.7609,217.95,217.84,2.2957]
[1734535192511,1.4362,217.94,217.84,2.2957]
[1734535192813,2.2953,217.9,217.84,2.2957]
[1734535193911,2.2953,217.9,217.8,17.82862724]
[1734535194110,2.2953,217.9,217.85,2.2957]
[1734535194507,2.2949,217.93,217.84,2.2958]
[1734535194713,4.2762,217.94,217.8,17.82862724]
[1734535195211,2.84,217.93,217.8,17.82862724]
[1734535195602,2.2952,217.9,217.84,2.2957]
[1734535195907,2.84,217.93,217.84,2.2957]
[1734535196206,2.84,217.93,217.79,55.45172033]
[1734535196412,17.82862724,217.92,217.79,2.84]
[1734535196612,17.82862724,217.92,217.76,17.82862724]
[1734535197516,2.2954,217.88,217.76,17.82862724]
[1734535197710,17.82862724,217.92,217.76,17.82862724]
[1734535197908,2.295,217.92,217.87,2.2954]
[1734535198111,2.84,217.93,217.8,17.82862724]
[1734535198315,2.84,217.93,217.81,2.84]
[1734535198510,5.1349,217.93,217.88,2.2953]
[1734535198714,5.1349,217.93,217.81,2.84]
[1734535199017,5.1349,217.93,217.87,2.2954]
[1734535199311,2.295,217.92,217.87,2.2954]
[1734535199511,2.84,217.93,217.87,2.2954]
[1734535200314,2.2952,217.9,217.83,2.2958]
[1734535200513,2.2952,217.9,217.8,17.82862724]
[1734535200916,5.1349,217.93,217.8,17.82862724]
[1734535201119,2.84,217.93,217.8,17.82862724]
[1734535201711,2.84,217.93,217.76,17.82862724]
[1734535202217,2.84,217.93,217.79,2.2962]
[1734535202518,2.84,217.93,217.75,5.50050106]
[1734535202718,2.296,217.83,217.77,2.2964]
[1734535202921,2.84,217.84,217.75,5.50050106]
[1734535203312,2.296,217.83,217.78,2.2963]
[1734535203724,2.296,217.83,217.75,5.50050106]
[1734535204728,2.296,217.83,217.78,2.2963]
[1734535205422,2.84,217.84,217.75,5.50050106]
[1734535205723,2.84,217.84,217.68,17.82862724]
[1734535205916,2.2964,217.78,217.72,2.297]
[1734535206110,2.2964,217.78,217.69,11.14479601]
[1734535206313,11.14479601,217.82,217.69,11.14479601]
[1734535206524,11.14479601,217.82,217.66,13.98479601]
[1734535207115,11.14479601,217.82,217.72,2.297]
[1734535208017,2.2965,217.78,217.73,2.2969]
[1734535208215,11.14479601,217.82,217.73,2.2969]
[1734535208718,11.14479601,217.82,217.66,11.14479601]
[1734535208923,11.14479601,217.79,217.66,11.14479601]
[1734535209123,2.84,217.78,217.66,11.14479601]
[1734535209320,2.2968,217.75,217.7,2.2972]
[1734535209520,2.84,217.78,217.7,2.2972]
[1734535210018,2.84,217.78,217.66,11.14479601]
[1734535210219,11.14479601,217.76,217.63,11.14479601]
[1734535210525,2.84,217.78,217.6,11.14479601]
[1734535210526,2.2975,217.68,217.6,11.14479601]
[1734535210722,2.84,217.69,217.62,2.2981]
[1734535211023,5.1375,217.69,217.6,11.14479601]
[1734535211225,5.59815082,217.87,217.64,11.14479601]
[1734535211419,4.6605,217.86,217.73,11.14479601]
[1734535211628,2.296,217.83,217.73,11.14479601]
[1734535211817,4.6605,217.86,217.73,11.14479601]
[1734535212218,11.14479601,217.84,217.74,2.2967]
[1734535212619,2.84,217.83,217.71,2.84]
[1734535212823,2.2963,217.8,217.71,2.84]
[1734535213226,2.2963,217.8,217.76,2.2966]
[1734535214419,2.84,217.83,217.7,17.82718259]
[1734535215128,4.6605,217.86,217.74,17.82718259]
[1734535215628,6.9562,217.86,217.82,2.296]
[1734535215825,3.0767,217.86,217.74,17.82718259]
[1734535216024,1.5664,217.86,217.78,17.82718259]
[1734535216231,2.84,217.87,217.78,17.82718259]
[1734535216724,2.82,217.92,217.79,2.82]
[1734535216929,8.55293271,217.94,217.79,2.82]
[1734535217230,2.82,217.93,217.79,2.82]
[1734535217530,5.8634,217.94,217.89,2.2952]
[1734535218025,8.1581,217.94,217.89,2.2952]
[1734535218223,5.3381,217.94,217.89,2.2952]
[1734535218833,3.0434,217.94,217.78,26.26010717]
[1734535219230,2.2951,217.91,217.86,2.2955]
[1734535219530,3.0434,217.94,217.78,26.26010717]
[1734535220228,3.0434,217.94,217.78,23.44010717]
[1734535220429,17.82718259,217.93,217.78,5.61292458]
[1734535220930,2.2955,217.87,217.78,5.61292458]
[1734535221734,2.82,217.89,217.78,5.61292458]
[1734535222134,2.82,217.89,217.84,2.2957]
[1734535222930,5.1153,217.89,217.81,2.2961]
[1734535223129,5.1153,217.89,217.78,5.61292458]
[1734535223130,2.82,217.89,217.78,5.61292458]
[1734535224032,4.2871,217.89,217.78,5.61292458]
[1734535224733,2.2955,217.88,217.81,2.296]
[1734535224933,4.2871,217.89,217.81,2.296]
[1734535225134,4.2871,217.89,217.78,5.61292458]
[1734535225337,4.2871,217.89,217.82,2.2959]
[1734535225536,4.2871,217.89,217.78,5.61292458]
[1734535225937,4.2871,217.89,217.82,2.2959]
[1734535226239,48.08607388,218.1,217.82,17.82718259]
[1734535226437,1.4599,218.01,217.82,17.82718259]
[1734535226633,4.2799,218.01,217.82,17.82718259]
[1734535226939,2.2945,217.96,217.91,2.295]
[1734535227134,4.2799,218.01,217.82,17.82718259]
[1734535227535,2.2947,217.95,217.89,2.2952]
[1734535227741,2.82,217.95,217.78,23.44010717]
[1734535227933,1.4606,217.94,217.79,2.82]
[1734535228533,2.2951,217.91,217.85,2.2956]
[1734535228836,1.4606,217.94,217.85,2.2956]
[1734535229031,1.4606,217.94,217.78,23.44010717]
[1734535229238,2.2955,217.87,217.81,2.296]
[1734535229437,2.82,217.88,217.78,23.44010717]
[1734535229739,2.82,217.89,217.78,23.44010717]
[1734535229939,2.82,217.9,217.78,23.44010717]
[1734535230938,2.82,217.9,217.89,2.2953]
[1734535231138,1.444,217.98,217.82,20.64718259]
[1734535231341,2.82,217.97,217.82,20.64718259]
[1734535232138,3.0259,217.98,217.86,17.82718259]
[1734535232341,1.5819,217.98,217.86,17.82718259]
[1734535232643,2.82,217.99,217.9,17.82718259]
[1734535233043,17.82718259,218.07,217.9,17.82718259]
[1734535233240,4.2799,218.01,217.9,17.82718259]
[1734535233442,4.2799,218.01,217.86,17.82718259]
[1734535233645,2.2945,217.97,217.91,2.295]
[1734535233942,4.2799,218.01,217.82,17.82718259]
[1734535234340,2.2947,217.95,217.82,17.82718259]
[1734535234540,2.82,217.94,217.82,17.82718259]
[1734535234846,1.4599,218.01,217.78,17.82718259]
[1734535234847,2.82,217.93,217.78,17.82718259]
[1734535235041,2.82,217.92,217.78,17.82718259]
[1734535235442,2.2954,217.89,217.78,17.82718259]
[1734535235741,19.34748259,217.91,217.71,17.82718259]
[1734535236139,19.34748259,217.91,217.75,17.82718259]
[1734535236639,1.5203,217.91,217.79,17.82718259]
[1734535236844,2.82,217.96,217.79,17.82718259]
[1734535237143,2.82,217.96,217.83,17.82718259]
[1734535237542,2.82,217.96,217.92,2.2949]
[1734535238247,2.82,217.96,217.9,2.2951]
[1734535238737,2.82,217.96,217.91,2.295]
[1734535239138,2.2947,217.95,217.83,17.82718259]
[1734535239338,2.2947,217.95,217.9,2.2952]
[1734535240238,2.2947,217.95,217.83,17.82718259]
[1734535240545,2.2947,217.95,217.89,2.2953]
[1734535240847,5.1145,217.96,217.91,2.295]
[1734535241347,2.82,217.95,217.83,17.82718259]
[1734535242546,2.2939,218.02,217.91,17.82718259]
[1734535242748,2.82,218.05,217.91,17.82718259]
[1734535242949,2.82,218.05,217.94,2.2946]
[1734535243249,20.64718259,218.05,217.87,20.64718259]
[1734535243451,20.64718259,218.05,217.87,2.82]
[1734535243647,202.15773483,218.17,217.9,17.82718259]
[1734535243947,17.82718259,218.1,217.9,17.82718259]
[1734535244251,2.2937,218.04,217.98,2.2942]
[1734535244451,16.55868199,218.09,217.98,2.2942]
[1734535244452,6.70468572,218.08,217.98,2.2942]
[1734535244648,2.82,218.09,217.98,2.2942]
[1734535244849,5.54508141,218.08,217.98,2.2942]
[1734535245348,5.54508141,218.08,217.9,17.82718259]
[1734535245349,5.54508141,218.08,217.9,20.64718259]
[1734535245749,2.2936,218.05,218.0,2.2941]
[1734535246153,5.54508141,218.08,217.9,20.64718259]
[1734535246351,2.76,218.07,217.96,2.2944]
[1734535246549,2.76,218.07,217.9,20.64718259]
[1734535246749,2.294,218.02,217.97,2.2943]
[1734535247046,2.76,218.03,217.9,20.64718259]
[1734535247453,2.2939,218.02,217.9,20.64718259]
[1734535247846,2.2942,218.0,217.95,2.2946]
[1734535248053,3.0282,218.01,217.88,5.64134842]
[1734535249655,3.0282,218.01,217.91,2.295]
[1734535250049,3.0282,218.01,217.88,5.64134842]
[1734535250249,2.2945,217.97,217.88,5.64134842]
[1734535250450,2.76,217.96,217.88,5.64134842]
[1734535250755,2.76,217.95,217.88,5.64134842]
[1734535251553,2.76,217.95,217.93,2.2948]
[1734535251754,5.7882,218.01,217.88,23.46853101]
[1734535252054,1.54,218.06,217.92,17.82718259]
[1734535252254,1.54,218.06,217.92,20.58718259]
[1734535252454,2.76,218.05,217.92,20.58718259]
[1734535252750,1.54,218.06,217.92,20.58718259]
[1734535252751,1.54,218.06,218.03,2.2938]
[1734535252955,2.76,218.06,217.92,20.58718259]
[1734535253253,2.76,218.06,218.04,2.2936]
[1734535253454,2.2932,218.09,217.92,20.58718259]
[1734535253654,2.76,218.09,217.96,17.82718259]
[1734535253850,1.5281,218.11,217.97,2.76]
[1734535254054,2.76,218.1,218.0,17.82718259]
[1734535254251,2.76,218.1,218.09,2.2932]
[1734535254647,2.76,218.1,218.0,17.82718259]
[1734535254848,2.76,218.1,218.03,2.2938]
[1734535255048,2.76,218.1,218.0,17.82718259]
[1734535255452,2.76,218.1,218.08,2.2932]
[1734535255754,2.2928,218.13,218.08,2.2932]
[1734535256059,2.76,218.16,218.04,17.82718259]
[1734535257062,2.76,218.17,218.08,17.82718259]
[1734535257261,2.76,218.17,218.0,2.76]
[1734535257558,2.76,218.17,218.02,17.82718259]
[1734535257949,2.76,218.17,218.06,17.82718259]
[1734535258155,2.76,218.17,218.06,20.58718259]
[1734535258755,2.76,218.17,218.09,2.2931]
[1734535258961,2.76,218.17,218.06,20.58718259]
[1734535259461,2.76,218.17,218.12,2.2927]
[1734535259760,2.76,218.17,218.06,20.58718259]
[1734535259964,5.0523,218.17,218.09,2.2931]
[1734535260159,5.0523,218.17,218.06,20.58718259]
[1734535260561,2.2928,218.13,218.08,2.2932]
[1734535260759,2.76,218.12,218.03,5.42144245]
[1734535261069,2.76,218.12,217.99,5.4451255]
[1734535261264,2.956,218.11,217.99,5.4451255]
[1734535261568,2.2934,218.07,217.87,57.0908]
[1734535261765,5.0534,218.07,217.96,17.82718259]
[1734535262363,5.0534,218.07,218.02,2.2939]
[1734535262766,2.76,218.12,218.0,17.82718259]
[1734535263368,2.76,218.16,218.04,17.82718259]
[1734535263762,2.76,218.16,218.04,20.58718259]
[1734535263968,2.76,218.16,218.04,17.82718259]
[1734535264468,5.0525,218.16,218.1,2.293]
[1734535264664,1.451,218.18,218.08,17.82718259]
[1734535265065,1.451,218.18,218.15,2.2925]
[1734535265467,1.451,218.18,218.08,17.82718259]
[1734535265771,2.76,218.2,218.08,17.82718259]
[1734535266067,5.052,218.2,218.08,17.82718259]
[1734535266267,2.76,218.2,218.08,17.82718259]
[1734535266664,4.32,218.24,218.12,17.82718259]
[1734535266869,1.56,218.24,218.12,20.58718259]
[1734535267071,3.8516,218.24,218.18,2.2921]
[1734535267465,1.56,218.24,218.12,20.58718259]
[1734535267866,2.2918,218.22,218.16,2.2923]
[1734535268370,2.2921,218.2,218.15,2.2925]
[1734535268569,5.0521,218.2,218.15,2.2925]
[1734535269274,5.0521,218.2,218.17,2.2922]
[1734535269275,2.76,218.2,218.17,2.2922]
[1734535269966,17.82718259,218.26,218.08,17.82718259]
[1734535269967,2.291,218.3,218.16,17.82718259]
[1734535270173,5.7246,218.34,218.17,2.76]
[1734535270973,5.7246,218.34,218.26,2.2914]
[1734535271173,5.7246,218.34,218.17,2.76]
[1734535271971,17.82718259,218.32,218.21,2.2918]
[1734535272171,17.82718259,218.28,218.21,2.2918]
[1734535272378,17.82718259,218.28,218.12,26.17473314]
[1734535272572,2.2916,218.25,218.2,2.292]
[1734535273266,2.9646,218.34,218.12,26.17473314]
[1734535273267,5.58509243,218.35,218.16,17.82718259]
[1734535273470,2.2908,218.32,218.27,2.2912]
[1734535273667,2.76,218.32,218.17,2.76]
[1734535273873,2.76,218.32,218.2,17.82718259]
[1734535274069,2.76,218.32,218.29,2.291]
[1734535275474,2.76,218.32,218.16,17.82718259]
[1734535275675,20.58718259,218.32,218.12,23.41473314]
[1734535275973,2.292,218.21,218.16,2.2923]
[1734535276179,2.76,218.21,218.12,5.58755055]
[1734535276774,2.76,218.21,218.07,2.76]
[1734535276977,2.76,218.21,218.04,20.58718259]
[1734535277177,2.2923,218.17,218.04,20.58718259]
[1734535277378,2.76,218.16,218.04,20.58718259]
[1734535277573,2.76,218.16,218.15,2.2925]
[1734535277775,1.5584,218.2,218.15,2.2925]
[1734535278080,2.76,218.19,218.09,5.61595426]
[1734535278779,2.76,218.2,218.09,5.61595426]
[1734535279176,1.5599,218.27,218.12,17.82718259]
[1734535279476,2.76,218.26,218.12,17.82718259]
[1734535280276,2.2915,218.25,218.2,2.2919]
[1734535280473,2.76,218.26,218.12,17.82718259]
[1734535280975,2.2916,218.24,218.19,2.2921]
[1734535281178,2.2916,218.24,218.12,17.82718259]
[1734535281582,2.2918,218.22,218.09,5.61595426]
[1734535281881,2.76,218.21,218.09,5.61595426]
[1734535282082,1.5599,218.27,218.09,5.61595426]
[1734535282283,1.5599,218.27,218.12,17.82718259]
[1734535282481,2.76,218.26,218.12,17.82718259]
[1734535282685,2.76,218.26,218.12,20.58718259]
[1734535282885,5.0514,218.26,218.16,2.2924]
[1734535283077,2.76,218.26,218.12,20.58718259]
[1734535283581,2.76,218.26,218.12,17.82718259]
[1734535284580,2.2917,218.23,218.18,2.2921]
[1734535284782,2.76,218.26,218.12,17.82718259]
[1734535285284,2.76,218.26,218.12,20.58718259]
[1734535285687,2.2917,218.23,218.19,2.2921]
[1734535285882,2.76,218.26,218.12,20.58718259]
[1734535286181,2.2913,218.28,218.23,2.2916]
[1734535286379,5.0513,218.28,218.23,2.2916]
[1734535286579,2.76,218.28,218.16,17.82718259]
[1734535286785,2.76,218.28,218.24,2.2915]
[1734535287278,1.5228,218.34,218.27,2.2912]
[1734535287485,2.76,218.33,218.27,2.2912]
[1734535287683,2.76,218.33,218.17,2.76]
[1734535287684,1.5228,218.34,218.2,17.82718259]
[1734535287878,1.5228,218.34,218.33,2.2906]
[1734535288085,4.2828,218.34,218.07,6.30627918]
[1734535288288,4.2828,218.34,218.17,17.82718259]
[1734535288587,2.2908,218.32,218.17,20.58718259]
[1734535288784,2.76,218.32,218.17,20.58718259]
[1734535289189,2.2908,218.32,218.27,2.2912]
[1734535289386,5.0508,218.32,218.27,2.2912]
[1734535289586,2.76,218.32,218.27,2.2912]
[1734535289787,2.2909,218.31,218.27,2.2912]
[1734535290089,6.85442835,218.38,218.28,2.2911]
[1734535290289,2.2903,218.37,218.25,17.82718259]
[1734535290488,2.76,218.37,218.25,17.82718259]
[1734535290694,1.468,218.38,218.32,2.2907]
[1734535290988,1.468,218.38,218.22,5.38361145]
[1734535290989,2.76,218.37,218.22,5.38361145]
[1734535291490,2.2907,218.33,218.28,2.2911]
[1734535291691,2.76,218.32,218.28,2.2911]
[1734535292290,2.76,218.32,218.22,5.38361145]
[1734535293490,2.76,218.33,218.22,5.38361145]
[1734535294392,2.2905,218.35,218.31,2.2908]
[1734535294590,2.76,218.34,218.31,2.2908]
[1734535294790,2.2907,218.33,218.22,5.38361145]
[1734535294986,2.2907,218.33,218.29,2.291]
[1734535295189,2.76,218.34,218.22,5.38361145]
[1734535295591,2.76,218.34,218.32,2.2906]
[1734535295796,1.468,218.38,218.32,2.2906]
[1734535295991,2.76,218.37,218.32,2.2906]
[1734535296390,2.2905,218.34,218.22,5.38361145]
[1734535297587,2.76,218.37,218.22,5.38361145]
[1734535299195,2.2907,218.33,218.29,2.291]
[1734535299390,2.76,218.37,218.22,5.38361145]
[1734535300100,2.2903,218.36,218.33,2.2906]
[1734535300295,2.2903,218.36,218.22,5.38361145]
[1734535300694,2.76,218.37,218.22,5.38361145]
[1734535300894,2.76,218.37,218.25,17.82718259]
[1734535301399,2.76,218.37,218.33,2.2905]
[1734535301698,2.76,218.37,218.25,17.82718259]
[1734535301699,1.468,218.38,218.25,17.82718259]
[1734535301899,2.76,218.37,218.25,17.82718259]
[1734535302194,2.76,218.4,218.38,2.29]
[1734535302498,2.76,218.4,218.29,20.58718259]
[1734535303098,2.76,218.4,218.38,2.29]
[1734535303295,2.76,218.4,218.29,20.58718259]
[1734535305501,2.76,218.4,218.37,2.2901]
[1734535305999,2.76,218.4,218.38,2.2901]
[1734535307604,5.0499,218.4,218.29,20.58718259]
[1734535307795,2.76,218.4,218.29,20.58718259]
[1734535307999,2.29,218.39,218.35,2.2904]
[1734535308199,2.76,218.4,218.29,17.82718259]
[1734535308499,2.2905,218.35,218.31,2.2908]
[1734535308699,2.72,218.35,218.26,5.63167158]
[1734535309898,2.72,218.4,218.26,5.63167158]
[1734535310607,2.72,218.4,218.37,2.2902]
[1734535312205,2.72,218.41,218.4,2.2899]
[1734535312809,2.72,218.41,218.39,2.29]
[1734535313309,5.0098,218.41,218.3,2.72]
[1734535313709,2.72,218.41,218.3,2.72]
[1734535313910,2.72,218.41,218.39,2.29]
[1734535314310,2.72,218.41,218.28,2.72]
[1734535314610,2.29,218.39,218.28,20.54718259]
[1734535315910,2.2899,218.4,218.28,20.54718259]
[1734535316609,2.2899,218.4,218.31,2.2908]
[1734535316912,2.2899,218.4,218.28,20.54718259]
[1734535318011,2.72,218.41,218.32,17.82718259]
[1734535318203,2.72,218.41,218.34,11.07947634]
[1734535318606,5.0098,218.42,218.38,2.29]
[1734535319003,1.5624,218.46,218.38,2.29]
[1734535319208,2.2898,218.41,218.38,2.29]
[1734535319713,2.72,218.45,218.39,2.29]
[1734535320211,2.2899,218.4,218.37,2.2901]